bitfinex-derivatives/quotes_BTCF0:USTF0_20260106
["timestamp","ask_amount","ask_price","bid_price","bid_amount"]
[1767665469543,0.01278146,93796.0,93779.0,0.00213268]
[1767665469843,0.01278146,93779.0,93767.0,0.09068]
[1767665470640,0.01278146,93783.0,93767.0,0.101345]
[1767665471845,0.010662,93794.0,93772.0,0.10660009]
[1767665472058,0.01278146,93794.0,93768.0,0.01305344]
[1767665472258,0.01278146,93788.0,93771.0,0.010664]
[1767665472850,0.01278146,93788.0,93768.0,0.01305344]
[1767665473257,0.01278146,93788.0,93774.0,0.010664]
[1767665474062,0.01278146,93792.0,93771.0,0.10898953]
[1767665474253,0.01278146,93792.0,93773.0,0.01305344]
[1767665474456,0.18907497,93795.0,93775.0,0.01305344]
[1767665474657,0.01278146,93794.0,93775.0,0.01305344]
[1767665475365,0.01278146,93794.0,93781.0,0.010663]
[1767665475661,0.01278146,93794.0,93777.0,0.010664]
[1767665475861,0.01278146,93793.0,93777.0,0.010664]
[1767665476063,0.01278146,93799.0,93781.0,0.010663]
[1767665478061,0.01278146,93799.0,93779.0,0.10898953]
[1767665478255,0.01278146,93799.0,93785.0,0.010663]
[1767665478458,0.01278146,93803.0,93781.0,0.10898953]
[1767665478658,0.09068,93805.0,93790.0,0.010662]
[1767665479058,0.09068,93805.0,93783.0,0.09593609]
[1767665479059,0.01278146,93803.0,93786.0,0.010663]
[1767665479251,0.01278146,93803.0,93785.0,0.010663]
[1767665479456,0.01278146,93803.0,93783.0,0.10898953]
[1767665479663,0.11117643,93803.0,93783.0,0.10898953]
[1767665479863,0.01278146,93802.0,93783.0,0.10898953]
[1767665480168,0.01278146,93802.0,93787.0,0.010662]
[1767665480758,0.10346146,93805.0,93792.0,0.010662]
[1767665480958,0.01278146,93805.0,93794.0,0.010662]
[1767665481359,0.0177089,93813.0,93796.0,0.010661]
[1767665481360,0.09068,93810.0,93796.0,0.010661]
[1767665481965,0.10346146,93810.0,93793.0,0.010662]
[1767665482162,0.01278146,93807.0,93790.0,0.010662]
[1767665482366,0.01278146,93804.0,93790.0,0.010662]
[1767665482863,0.09839497,93805.0,93790.0,0.010662]
[1767665484561,0.09839497,93805.0,93790.0,0.10895515]
[1767665488070,0.01278146,93807.0,93790.0,0.10895515]
[1767665488376,0.01491346,93809.0,93790.0,0.09829315]
[1767665488760,0.01278146,93806.0,93791.0,0.010662]
[1767665488965,0.01278146,93805.0,93791.0,0.010662]
[1767665489975,0.01278146,93804.0,93791.0,0.010662]
[1767665492578,0.01278146,93804.0,93790.0,0.09829315]
[1767665492880,0.01278146,93804.0,93793.0,0.010662]
[1767665494181,0.002132,93809.0,93793.0,0.010662]
[1767665494383,0.01347159,93809.0,93795.0,0.010662]
[1767665494882,0.01133959,93807.0,93795.0,0.010662]
[1767665496282,0.09947734,93808.0,93795.0,0.010662]
[1767665496780,0.09947734,93808.0,93792.0,0.010662]
[1767665496981,0.01133959,93807.0,93792.0,0.010662]
[1767665497482,0.01133959,93807.0,93794.0,0.010662]
[1767665497988,0.09947734,93808.0,93794.0,0.010662]
[1767665499383,0.002132,93809.0,93796.0,0.010661]
[1767665502082,0.002132,93809.0,93802.0,0.010661]
[1767665502481,0.002132,93809.0,93799.0,0.10895415]
[1767665502675,0.002132,93809.0,93799.0,0.010661]
[1767665503579,0.19015734,93823.0,93804.0,0.01176807]
[1767665503886,0.19015734,93823.0,93810.0,0.09829315]
[1767665504282,0.20815959,93823.0,93810.0,0.09829315]
[1767665505180,0.10868225,93823.0,93810.0,0.09829315]
[1767665505382,0.10868225,93823.0,93811.0,0.01066]
[1767665505785,0.01800225,93823.0,93810.0,0.09829315]
[1767665505984,0.10201959,93825.0,93810.0,0.09829315]
[1767665506185,0.01133959,93824.0,93810.0,0.09829315]
[1767665506482,0.01133959,93824.0,93803.0,0.09599021]
[1767665506686,0.01133959,93824.0,93810.0,0.09829315]
[1767665508184,0.01133959,93824.0,93812.0,0.01066]
[1767665508386,0.02937232,93824.0,93812.0,0.01066]
[1767665508788,0.02937232,93824.0,93814.0,0.010659]
[1767665509585,0.01803273,93824.0,93814.0,0.010659]
[1767665509793,0.09068,93825.0,93814.0,0.010659]
[1767665510088,0.10201959,93825.0,93814.0,0.010659]
[1767665511290,0.12032266,93825.0,93814.0,0.010659]
[1767665511679,0.01133959,93824.0,93814.0,0.010659]
[1767665515990,0.10898307,93825.0,93814.0,0.010659]
[1767665518492,0.01830307,93825.0,93814.0,0.010659]
[1767665518694,0.09068,93831.0,93817.0,0.010659]
[1767665519292,0.01765585,93831.0,93816.0,0.01138395]
[1767665519494,0.10176561,93836.0,93812.0,0.0948154]
[1767665519495,0.01108561,93833.0,93817.0,0.010659]
[1767665520197,0.01108561,93833.0,93814.0,0.01138395]
[1767665520701,0.01108561,93833.0,93818.0,0.010659]
[1767665520893,0.01108561,93832.0,93815.0,0.010659]
[1767665521092,0.02938561,93832.0,93815.0,0.010659]
[1767665521398,0.01136107,93831.0,93815.0,0.010659]
[1767665521894,0.01136107,93831.0,93808.0,0.09068]
[1767665521895,0.10222698,93820.0,93811.0,0.01066]
[1767665522192,0.09086591,93820.0,93808.0,0.09064]
[1767665522988,0.09086591,93825.0,93808.0,0.09064]
[1767665523188,0.09086591,93825.0,93813.0,0.010659]
[1767665523388,0.09086591,93825.0,93810.0,0.01066]
[1767665523589,0.10222698,93825.0,93810.0,0.01066]
[1767665523799,0.01136107,93824.0,93810.0,0.01066]
[1767665524698,0.01136107,93824.0,93810.0,0.10895315]
[1767665525099,0.01136107,93824.0,93810.0,0.01066]
[1767665525700,0.01136107,93823.0,93810.0,0.01066]
[1767665526402,0.01136107,93823.0,93812.0,0.01066]
[1767665527704,0.09829315,93830.0,93814.0,0.010659]
[1767665527705,0.09086591,93827.0,93814.0,0.010659]
[1767665527890,0.01136107,93826.0,93814.0,0.010659]
[1767665529911,0.10222698,93831.0,93816.0,0.010659]
[1767665530203,0.01136107,93828.0,93816.0,0.010659]
[1767665532206,0.01136107,93828.0,93810.0,0.09829315]
[1767665532605,0.01136107,93828.0,93814.0,0.010659]
[1767665533410,0.09829315,93830.0,93814.0,0.010659]
[1767665533609,0.0175632,93832.0,93814.0,0.010659]
[1767665533809,0.010657,93833.0,93814.0,0.010659]
[1767665534019,0.10895115,93830.0,93814.0,0.010659]
[1767665534615,0.01136107,93829.0,93816.0,0.010659]
[1767665535209,0.01136107,93828.0,93816.0,0.010659]
[1767665536115,0.01136107,93828.0,93813.0,0.010659]
[1767665536308,0.01136107,93827.0,93813.0,0.010659]
[1767665537006,0.01136107,93827.0,93817.0,0.010659]
[1767665537206,0.01136107,93827.0,93808.0,0.09064]
[1767665537207,0.01136107,93827.0,93814.0,0.010659]
[1767665538714,0.01136107,93827.0,93811.0,0.01066]
[1767665539814,0.01136107,93827.0,93816.0,0.010659]
[1767665543814,0.18893315,93830.0,93816.0,0.010659]
[1767665544020,0.20029422,93830.0,93816.0,0.010659]
[1767665544320,0.18893315,93830.0,93818.0,0.010659]
[1767665544516,0.09064,93830.0,93818.0,0.010659]
[1767665544716,0.12031184,93832.0,93818.0,0.010659]
[1767665545020,0.12031184,93832.0,93815.0,0.010659]
[1767665545211,0.02201807,93831.0,93811.0,0.01164168]
[1767665545919,0.01136107,93828.0,93812.0,0.01066]
[1767665546218,0.010658,93827.0,93812.0,0.01066]
[1767665546411,0.01136107,93826.0,93812.0,0.01066]
[1767665546917,0.01136107,93826.0,93808.0,0.09064]
[1767665547116,0.09086591,93828.0,93808.0,0.10228168]
[1767665547623,0.09086591,93828.0,93814.0,0.010659]
[1767665548015,0.10222698,93828.0,93814.0,0.010659]
[1767665551425,0.10222698,93828.0,93816.0,0.010659]
[1767665551620,0.0105781,93827.0,93816.0,0.010659]
[1767665552320,0.0105781,93827.0,93808.0,0.10228168]
[1767665552625,0.0105781,93822.0,93811.0,0.01066]
[1767665552824,0.0105781,93822.0,93808.0,0.09064]
[1767665553025,0.0105781,93822.0,93811.0,0.01066]
[1767665553326,0.0105781,93827.0,93814.0,0.010659]
[1767665553825,0.09609735,93830.0,93816.0,0.010659]
[1767665554424,0.10667545,93830.0,93816.0,0.010659]
[1767665554624,0.0105781,93829.0,93816.0,0.010659]
[1767665555124,0.0105781,93827.0,93813.0,0.010659]
[1767665560029,0.0105781,93827.0,93808.0,0.10128011]
[1767665561426,0.0105781,93827.0,93816.0,0.010659]
[1767665561734,0.0105781,93827.0,93813.0,0.010659]
[1767665561925,0.09609735,93828.0,93813.0,0.010659]
[1767665562326,0.09609735,93828.0,93815.0,0.010659]
[1767665562834,0.10667545,93828.0,93815.0,0.010659]
[1767665564034,0.10667545,93828.0,93812.0,0.01066]
[1767665564222,0.10667545,93828.0,93809.0,0.01064011]
[1767665564426,0.0105781,93826.0,93810.0,0.01066]
[1767665564622,0.010659,93820.0,93807.0,0.09064]
[1767665564934,0.010658,93823.0,93807.0,0.09064]
[1767665565845,0.0105781,93825.0,93809.0,0.01066]
[1767665566944,0.010658,93827.0,93811.0,0.10678317]
[1767665567247,0.101298,93830.0,93815.0,0.010659]
[1767665567545,0.010658,93828.0,93812.0,0.02130011]
[1767665567845,0.010658,93828.0,93812.0,0.01066]
[1767665569041,0.010658,93826.0,93812.0,0.01066]
[1767665569649,0.010658,93826.0,93811.0,0.09614306]
[1767665570545,0.1118761,93830.0,93812.0,0.01066]
[1767665570746,0.010658,93828.0,93814.0,0.010659]
[1767665571550,0.0105781,93829.0,93807.0,0.09064]
[1767665571551,0.0105781,93829.0,93807.0,0.06408435]
[1767665572350,0.0212361,93829.0,93807.0,0.06408435]
[1767665573054,0.11733345,93829.0,93807.0,0.06408435]
[1767665573242,0.010658,93825.0,93811.0,0.01066]
[1767665573455,0.010658,93823.0,93808.0,0.01066]
[1767665573640,0.0105781,93819.0,93807.0,0.06408435]
[1767665573844,0.10667545,93811.0,93792.0,0.01064011]
[1767665574048,0.11733545,93811.0,93796.0,0.008582]
[1767665574448,0.11733545,93811.0,93793.0,0.101302]
[1767665574656,0.11733545,93811.0,93795.0,0.010662]
[1767665574657,0.10581457,93810.0,93795.0,0.010662]
[1767665574855,0.10581457,93810.0,93797.0,0.010661]
[1767665575055,0.09459366,93810.0,93799.0,0.010661]
[1767665575852,0.01122091,93814.0,93799.0,0.010661]
[1767665576052,0.01122091,93814.0,93801.0,0.010661]
[1767665577055,0.01122091,93814.0,93798.0,0.010661]
[1767665580659,0.01122091,93814.0,93800.0,0.010661]
[1767665580860,0.09459366,93815.0,93800.0,0.010661]
[1767665581055,0.09459366,93815.0,93802.0,0.010661]
[1767665581251,0.01184239,93818.0,93798.0,0.01181146]
[1767665581452,0.10704231,93818.0,93798.0,0.01181146]
[1767665582454,0.10704231,93818.0,93804.0,0.01066]
[1767665584364,0.10704231,93818.0,93801.0,0.010661]
[1767665585068,0.09519992,93818.0,93801.0,0.010661]
[1767665585366,0.01184239,93816.0,93801.0,0.010661]
[1767665585758,0.09519992,93817.0,93801.0,0.010661]
[1767665586362,0.09519992,93817.0,93798.0,0.01181146]
[1767665586567,0.09064,93825.0,93808.0,0.01181146]
[1767665587156,0.010658,93824.0,93808.0,0.01181146]
[1767665587357,0.010658,93824.0,93804.0,0.11416573]
[1767665588269,0.010658,93824.0,93806.0,0.01066]
[1767665588470,0.09064,93825.0,93806.0,0.01181146]
[1767665589270,0.09064,93825.0,93811.0,0.01066]
[1767665589668,0.01184239,93826.0,93811.0,0.01066]
[1767665589853,0.01184239,93826.0,93813.0,0.010659]
[1767665590562,0.10704231,93828.0,93813.0,0.010659]
[1767665591369,0.10704231,93828.0,93812.0,0.01066]
[1767665595466,0.09519992,93828.0,93816.0,0.010659]
[1767665595668,0.04081016,93832.0,93816.0,0.010659]
[1767665596662,0.03015316,93832.0,93816.0,0.010659]
[1767665597872,0.12535308,93832.0,93816.0,0.010659]
[1767665599972,0.12535308,93832.0,93818.0,0.010659]
[1767665601169,0.01184239,93831.0,93815.0,0.010659]
[1767665601367,0.10704231,93831.0,93815.0,0.010659]
[1767665601773,0.10704231,93831.0,93817.0,0.010659]
[1767665602275,0.01184239,93830.0,93817.0,0.010659]
[1767665603376,0.10704231,93828.0,93813.0,0.010659]
[1767665603575,0.01184239,93827.0,93813.0,0.010659]
[1767665604273,0.01184239,93827.0,93815.0,0.010659]
[1767665604472,0.01184239,93827.0,93816.0,0.010659]
[1767665604774,0.010658,93830.0,93816.0,0.010659]
[1767665604974,0.01603546,93832.0,93820.0,0.010659]
[1767665605175,0.010657,93834.0,93815.0,0.01181146]
[1767665605676,0.10248239,93835.0,93815.0,0.01181146]
[1767665605881,0.09064,93835.0,93823.0,0.010658]
[1767665606080,0.09064,93835.0,93825.0,0.010658]
[1767665606378,0.01787989,93835.0,93827.0,0.010658]
[1767665606582,0.01787989,93835.0,93814.0,0.18233327]
[1767665606583,0.09519992,93844.0,93831.0,0.010657]
[1767665606785,0.10704231,93844.0,93831.0,0.010657]
[1767665606985,0.11769831,93844.0,93827.0,0.010658]
[1767665607177,0.01184239,93841.0,93827.0,0.010658]
[1767665607479,0.10704231,93841.0,93821.0,0.01181146]
[1767665607673,0.10704231,93839.0,93820.0,0.09819827]
[1767665607976,0.10704231,93839.0,93824.0,0.010658]
[1767665608185,0.01184239,93842.0,93824.0,0.010658]
[1767665608680,0.01184239,93842.0,93827.0,0.010658]
[1767665610065,0.01184239,93842.0,93824.0,0.09064]
[1767665610273,0.11305253,93844.0,93830.0,0.010658]
[1767665610570,0.12489492,93844.0,93830.0,0.010658]
[1767665611982,0.12489492,93844.0,93827.0,0.010658]
[1767665612481,0.12489492,93844.0,93824.0,0.10245146]
[1767665612482,0.01069019,93843.0,93829.0,0.010658]
[1767665612681,0.10935425,93843.0,93829.0,0.010658]
[1767665613283,0.10935425,93840.0,93826.0,0.010658]
[1767665614579,0.10935425,93839.0,93824.0,0.09064]
[1767665616280,0.10935425,93839.0,93825.0,0.010658]
[1767665617788,0.10935425,93839.0,93828.0,0.010658]
[1767665618993,0.01069019,93843.0,93828.0,0.010658]
[1767665619293,0.01069019,93842.0,93830.0,0.010658]
[1767665621493,0.10935425,93838.0,93824.0,0.09064]
[1767665621997,0.09866406,93838.0,93824.0,0.09064]
[1767665623394,0.09866406,93838.0,93826.0,0.010658]
[1767665623996,0.09866406,93838.0,93830.0,0.010658]
[1767665624388,0.01069019,93841.0,93830.0,0.010658]
[1767665625698,0.01785261,93844.0,93830.0,0.09819827]
[1767665625894,0.10931906,93849.0,93833.0,0.010657]
[1767665626089,0.12000925,93849.0,93833.0,0.010657]
[1767665626290,0.10935425,93848.0,93833.0,0.010657]
[1767665627700,0.12796618,93848.0,93833.0,0.010657]
[1767665629103,0.12796618,93848.0,93835.0,0.010657]
[1767665629698,0.10935425,93847.0,93835.0,0.010657]
[1767665632296,0.09866406,93847.0,93835.0,0.010657]
[1767665633608,0.10935425,93840.0,93832.0,0.010657]
[1767665633903,0.10935425,93839.0,93824.0,0.09064]
[1767665634096,0.09866406,93839.0,93829.0,0.010658]
[1767665636009,0.09866406,93839.0,93826.0,0.010658]
[1767665637098,0.09866406,93839.0,93824.0,0.09064]
[1767665637305,0.01069019,93842.0,93824.0,0.09064]
[1767665638306,0.01047205,93841.0,93824.0,0.09064]
[1767665638703,0.01047205,93841.0,93830.0,0.010658]
[1767665639603,0.09809024,93842.0,93830.0,0.010658]
[1767665640006,0.10856229,93842.0,93830.0,0.010658]
[1767665641311,0.10856229,93842.0,93824.0,0.09064]
[1767665641493,0.0103136,93830.0,93811.0,0.01015822]
[1767665641806,0.0103136,93825.0,93808.0,0.01066]
[1767665642008,0.0103136,93822.0,93810.0,0.09064]
[1767665642402,0.0103136,93822.0,93811.0,0.01066]
[1767665642609,0.09953999,93823.0,93811.0,0.01066]
[1767665643405,0.09953999,93823.0,93810.0,0.18883827]
[1767665643708,0.09064,93847.0,93816.0,0.01015822]
[1767665643902,0.010657,93839.0,93820.0,0.10885727]
[1767665644098,0.010657,93839.0,93822.0,0.010658]
[1767665644998,0.010657,93839.0,93821.0,0.09064]
[1767665645199,0.010658,93831.0,93821.0,0.09064]
[1767665645405,0.010657,93835.0,93821.0,0.09064]
[1767665645709,0.0209706,93835.0,93821.0,0.09064]
[1767665646100,0.0103136,93835.0,93821.0,0.101299]
[1767665646299,0.0103136,93835.0,93821.0,0.09064]
[1767665646502,0.0103136,93834.0,93821.0,0.09064]
[1767665646717,0.0103136,93832.0,93821.0,0.09064]
[1767665649409,0.0103136,93836.0,93822.0,0.010658]
[1767665649911,0.0103136,93836.0,93821.0,0.09064]
[1767665650512,0.0103136,93836.0,93821.0,0.101299]
[1767665652210,0.0103136,93835.0,93821.0,0.09064]
[1767665652399,0.0209706,93834.0,93821.0,0.09064]
[1767665652603,0.0103136,93833.0,93821.0,0.09064]
[1767665654005,0.0103136,93833.0,93821.0,0.101299]
[1767665654203,0.0103136,93833.0,93821.0,0.09064]
[1767665654914,0.0103136,93833.0,93818.0,0.010659]
[1767665655412,0.0103136,93833.0,93820.0,0.010659]
[1767665657412,0.0103136,93833.0,93817.0,0.09064]
[1767665657717,0.09953999,93834.0,93817.0,0.09064]
[1767665657718,0.010658,93826.0,93817.0,0.09064]
[1767665659909,0.0103136,93826.0,93817.0,0.09064]
[1767665660318,0.11019799,93829.0,93817.0,0.09064]
[1767665663320,0.010658,93827.0,93817.0,0.09064]
[1767665663522,0.0209716,93827.0,93817.0,0.09064]
[1767665663822,0.010658,93828.0,93817.0,0.09064]
[1767665670237,0.010658,93828.0,93814.0,0.010659]
[1767665670536,0.010658,93829.0,93814.0,0.010659]
[1767665678645,0.0103136,93833.0,93816.0,0.010659]
[1767665680648,0.010658,93831.0,93818.0,0.010659]
[1767665683446,0.0103136,93833.0,93818.0,0.010659]
[1767665683741,0.010657,93832.0,93818.0,0.010659]
[1767665683947,0.010657,93832.0,93815.0,0.010659]
[1767665684542,0.09953999,93834.0,93815.0,0.09118991]
[1767665684747,0.010657,93835.0,93816.0,0.01042546]
[1767665684948,0.010657,93835.0,93816.0,0.10161537]
[1767665685146,0.010657,93835.0,93817.0,0.10161537]
[1767665685334,0.010657,93835.0,93818.0,0.01042546]
[1767665686244,0.010657,93835.0,93820.0,0.010659]
[1767665687335,0.010657,93833.0,93818.0,0.01042546]
[1767665687748,0.010658,93831.0,93817.0,0.10184891]
[1767665688647,0.00960288,93836.0,93819.0,0.010659]
[1767665690151,0.010657,93833.0,93819.0,0.010659]
[1767665691949,0.00960288,93836.0,93817.0,0.09118991]
[1767665692152,0.010658,93830.0,93817.0,0.09118991]
[1767665692555,0.010657,93833.0,93818.0,0.010659]
[1767665693855,0.00960288,93836.0,93818.0,0.010659]
[1767665694952,0.00960288,93836.0,93820.0,0.010659]
[1767665695256,0.010657,93834.0,93820.0,0.010659]
[1767665695656,0.010657,93834.0,93819.0,0.010659]
[1767665697951,0.00946798,93830.0,93814.0,0.010659]
[1767665698356,0.010658,93823.0,93812.0,0.088561]
[1767665698559,0.00946798,93825.0,93809.0,0.002132]
[1767665698755,0.010659,93822.0,93809.0,0.002132]
[1767665699357,0.02012598,93825.0,93809.0,0.012792]
[1767665699662,0.010658,93825.0,93809.0,0.02198514]
[1767665699960,0.00946798,93829.0,93811.0,0.01066]
[1767665700753,0.010658,93823.0,93809.0,0.01132514]
[1767665701053,0.02052918,93817.0,93809.0,0.002132]
[1767665701254,0.010659,93815.0,93801.0,0.09064]
[1767665701558,0.10885704,93814.0,93801.0,0.09064]
[1767665701758,0.00987018,93808.0,93793.0,0.09064]
[1767665702355,0.00987018,93808.0,93794.0,0.010662]
[1767665702559,0.00987018,93812.0,93793.0,0.19713393]
[1767665702756,0.10051018,93815.0,93794.0,0.00968832]
[1767665703062,0.00987018,93814.0,93797.0,0.010661]
[1767665703448,0.09898686,93816.0,93800.0,0.010661]
[1767665703648,0.09898686,93816.0,93797.0,0.11715493]
[1767665703861,0.09064,93816.0,93797.0,0.11715493]
[1767665704261,0.09064,93816.0,93798.0,0.10649393]
[1767665705560,0.010659,93815.0,93798.0,0.10649393]
[1767665705764,0.09064,93816.0,93799.0,0.010661]
[1767665706554,0.09064,93816.0,93804.0,0.00968832]
[1767665706755,0.09064,93816.0,93806.0,0.00968832]
[1767665706951,0.010659,93819.0,93801.0,0.010661]
[1767665707155,0.09064,93820.0,93793.0,0.09064]
[1767665708968,0.09064,93820.0,93803.0,0.010661]
[1767665713169,0.008579,93823.0,93810.0,0.00968832]
[1767665714470,0.010659,93821.0,93809.0,0.09680561]
[1767665714871,0.010658,93825.0,93809.0,0.09680561]
[1767665715363,0.00987018,93821.0,93803.0,0.09064]
[1767665715567,0.00987018,93817.0,93803.0,0.101301]
[1767665715756,0.09898686,93817.0,93803.0,0.101301]
[1767665715959,0.02052918,93820.0,93803.0,0.101301]
[1767665716860,0.010659,93818.0,93803.0,0.09064]
[1767665717061,0.02053018,93813.0,93797.0,0.010661]
[1767665717271,0.00987018,93812.0,93797.0,0.101301]
[1767665717863,0.10964686,93813.0,93797.0,0.101301]
[1767665718370,0.01066,93811.0,93797.0,0.09064]
[1767665718867,0.09898686,93821.0,93801.0,0.10649393]
[1767665719073,0.010659,93820.0,93807.0,0.00968832]
[1767665719665,0.01066,93813.0,93798.0,0.02034932]
[1767665720172,0.01066,93813.0,93799.0,0.00968832]
[1767665721063,0.010659,93817.0,93800.0,0.010661]
[1767665721265,0.010659,93817.0,93801.0,0.00968832]
[1767665721465,0.010659,93817.0,93802.0,0.010661]
[1767665721974,0.010659,93817.0,93803.0,0.00968832]
[1767665723274,0.010659,93817.0,93802.0,0.09680561]
[1767665723470,0.02053018,93811.0,93797.0,0.09064]
[1767665723667,0.01066,93809.0,93797.0,0.09064]
[1767665723868,0.11951704,93809.0,93797.0,0.09064]
[1767665724068,0.10885704,93807.0,93793.0,0.09068]
[1767665724270,0.010661,93803.0,93787.0,0.010662]
[1767665724471,0.10885704,93800.0,93786.0,0.09068]
[1767665724663,0.010661,93799.0,93781.0,0.10746861]
[1767665724868,0.010661,93799.0,93782.0,0.09068]
[1767665725468,0.10885704,93800.0,93783.0,0.010663]
[1767665725978,0.010661,93802.0,93784.0,0.00968832]
[1767665726768,0.010661,93802.0,93785.0,0.010663]
[1767665727172,0.010661,93800.0,93782.0,0.101343]
[1767665727479,0.010662,93796.0,93782.0,0.09068]
[1767665728776,0.02053118,93799.0,93782.0,0.09068]
[1767665729279,0.09832399,93792.0,93779.0,5.368e-05]
[1767665729575,0.010662,93792.0,93779.0,5.368e-05]
[1767665729777,0.010662,93795.0,93779.0,0.01071668]
[1767665730480,0.02959977,93795.0,93779.0,0.01071668]
[1767665731281,0.01893777,93795.0,93779.0,0.02071739]
[1767665731582,0.10964786,93798.0,93780.0,0.09832399]
[1767665731879,0.10964786,93798.0,93780.0,0.1083247]
[1767665732572,0.010661,93798.0,93781.0,0.01000071]
[1767665733477,0.01845728,93798.0,93781.0,0.01000071]
[1767665733679,0.00987018,93800.0,93785.0,0.010663]
[1767665734278,0.09068,93801.0,93785.0,0.010663]
[1767665734979,0.10381318,93800.0,93785.0,0.010663]
[1767665735471,0.09068,93801.0,93785.0,0.010663]
[1767665735670,0.10928941,93801.0,93785.0,0.010663]
[1767665736680,0.11944537,93801.0,93785.0,0.010663]
[1767665737181,0.09832399,93800.0,93785.0,0.010663]
[1767665738082,0.10847995,93800.0,93785.0,0.010663]
[1767665738877,0.10847995,93800.0,93782.0,0.010663]
[1767665739082,0.11914095,93800.0,93782.0,0.010663]
[1767665739682,0.21279817,93800.0,93782.0,0.010663]
[1767665740074,0.01015596,93797.0,93779.0,0.01071668]
[1767665740275,0.010661,93796.0,93781.0,0.010663]
[1767665740476,0.01015596,93797.0,93781.0,0.010663]
[1767665740776,0.09365722,93798.0,93783.0,0.010663]
[1767665741884,0.010661,93799.0,93783.0,0.010663]
[1767665742376,0.010661,93799.0,93780.0,0.1189877]
[1767665745796,0.010661,93799.0,93782.0,0.010663]
[1767665747189,0.02081696,93799.0,93782.0,0.010663]
[1767665749286,0.01015596,93799.0,93781.0,0.01000071]
[1767665749488,0.20264221,93800.0,93785.0,0.010663]
[1767665749692,0.20264221,93800.0,93782.0,0.01000071]
[1767665750891,0.01015596,93799.0,93780.0,0.09832399]
[1767665751094,0.01015596,93799.0,93783.0,0.010663]
[1767665752785,0.09365722,93800.0,93781.0,0.01000071]
[1767665752986,0.19198121,93800.0,93781.0,0.01000071]
[1767665753987,0.19198121,93800.0,93787.0,0.010662]
[1767665754187,0.09365722,93800.0,93787.0,0.010662]
[1767665754388,0.19198121,93800.0,93787.0,0.010662]
[1767665755094,0.19198121,93800.0,93781.0,0.01000071]
[1767665755397,0.19198121,93800.0,93787.0,0.010662]
[1767665755695,0.01860941,93801.0,93787.0,0.010662]
[1767665755897,0.010661,93803.0,93787.0,0.02015667]
[1767665756193,0.02750126,93803.0,93787.0,0.010662]
[1767665756893,0.03691822,93803.0,93787.0,0.010662]
[1767665759896,0.03691822,93803.0,93797.0,0.10570003]
[1767665759897,0.00677571,93803.0,93797.0,0.10570003]
[1767665760193,0.00941696,93816.0,93793.0,0.09832399]
[1767665760393,0.0999142,93816.0,93790.0,0.09832399]
[1767665760697,0.0999142,93815.0,93790.0,0.09832399]
[1767665760890,0.11671185,93815.0,93790.0,0.09832399]
[1767665761087,0.01066,93813.0,93788.0,0.09068]
[1767665761288,0.09832399,93810.0,93790.0,0.09832399]
[1767665761483,0.09397803,93807.0,93764.0,0.010665]
[1767665761799,0.01679765,93815.0,93764.0,0.010665]
[1767665761800,0.09397803,93797.0,93783.0,0.09068]
[1767665762296,0.09397803,93797.0,93789.0,0.010662]
[1767665762597,0.01130515,93801.0,93790.0,0.010662]
[1767665763182,0.09397803,93802.0,93790.0,0.010662]
[1767665763793,0.10528318,93800.0,93790.0,0.010662]
[1767665764195,0.09397803,93811.0,93791.0,0.01045173]
[1767665764400,0.09397803,93811.0,93792.0,0.01045173]
[1767665764904,0.10463803,93811.0,93795.0,0.010661]
[1767665765205,0.11594318,93811.0,93792.0,0.02111373]
[1767665766604,0.10528318,93810.0,93792.0,0.010662]
[1767665767105,0.10528318,93810.0,93790.0,0.09832399]
[1767665767305,0.10528318,93810.0,93790.0,0.10877572]
[1767665768210,0.10528318,93810.0,93794.0,0.010662]
[1767665769506,0.10528318,93810.0,93796.0,0.010661]
[1767665770904,0.10528318,93809.0,93796.0,0.010661]
[1767665774002,0.11077568,93815.0,93798.0,0.01045173]
[1767665774211,0.09068,93814.0,93800.0,0.010661]
[1767665774506,0.10528318,93812.0,93799.0,0.09832399]
[1767665774806,0.10528318,93811.0,93797.0,0.010661]
[1767665775397,0.10528318,93811.0,93799.0,0.010661]
[1767665775596,0.10528318,93811.0,93800.0,0.09832399]
[1767665776002,0.09397803,93811.0,93799.0,0.010661]
[1767665777410,0.10528318,93809.0,93796.0,0.010661]
[1767665777709,0.10528318,93807.0,93793.0,0.101342]
[1767665778108,0.10528318,93807.0,93795.0,0.010662]
[1767665778514,0.10528318,93806.0,93795.0,0.010662]
[1767665781113,0.10528318,93806.0,93797.0,0.010661]
[1767665781315,0.09397803,93806.0,93799.0,0.010661]
[1767665781710,0.09397803,93806.0,93796.0,0.010661]
[1767665781914,0.09397803,93806.0,93793.0,0.09068]
[1767665782116,0.09397803,93794.0,93784.0,0.010663]
[1767665782306,0.09397803,93794.0,93785.0,0.09068]
[1767665783618,0.01130515,93799.0,93785.0,0.09068]
[1767665783913,0.10528318,93799.0,93785.0,0.09068]
[1767665785716,0.09397803,93799.0,93787.0,0.010662]
[1767665786218,0.09397803,93799.0,93785.0,0.09068]
[1767665786405,0.09397803,93799.0,93789.0,0.09832399]
[1767665786718,0.01130515,93803.0,93789.0,0.09832399]
[1767665786907,0.10528318,93803.0,93789.0,0.09832399]
[1767665787409,0.10528318,93803.0,93790.0,0.010662]
[1767665790219,0.10528318,93803.0,93789.0,0.09832399]
[1767665790522,0.10528318,93803.0,93789.0,0.010662]
[1767665793020,0.10528318,93803.0,93786.0,0.010663]
[1767665793211,0.00968016,93798.0,93785.0,0.09068]
[1767665793412,0.09865079,93797.0,93785.0,0.09068]
[1767665793824,0.10931179,93797.0,93785.0,0.09068]
[1767665794022,0.09865079,93797.0,93785.0,0.09068]
[1767665796224,0.09865079,93797.0,93786.0,0.010663]
[1767665800224,0.09865079,93797.0,93785.0,0.09068]
[1767665801131,0.09865079,93797.0,93785.0,0.101343]
[1767665803035,0.09865079,93797.0,93787.0,0.010662]
[1767665803422,0.10833095,93802.0,93787.0,0.010662]
[1767665804234,0.10833095,93802.0,93785.0,0.09068]
[1767665804733,0.09865079,93802.0,93792.0,0.010662]
[1767665805030,0.09865079,93802.0,93785.0,0.10070553]
[1767665805847,0.01066,93808.0,93785.0,0.10070553]
[1767665805848,0.09865079,93808.0,93793.0,0.010662]
[1767665806028,0.00968016,93807.0,93793.0,0.010662]
[1767665806228,0.10833095,93806.0,93793.0,0.010662]